bitfinex/quotes_ETHUSD_20250404
["timestamp","ask_amount","ask_price","bid_price","bid_amount"]
[1743790194145,6.27048,1814.5,1814.1,5.5122]
[1743790194346,6.27048,1814.5,1814.2,5.51198]
[1743790194547,5.51118,1814.5,1814.2,6.34125]
[1743790195154,11.02195,1814.6,1814.2,6.34116]
[1743790195359,11.02254,1814.5,1814.2,0.8292]
[1743790195574,5.51146,1814.4,1813.7,6.33458]
[1743790195869,5.51259,1814.1,1813.8,5.51324]
[1743790196068,5.51259,1814.1,1813.7,6.33453]
[1743790196271,11.02515,1814.1,1813.7,6.33453]
[1743790196456,5.51256,1814.1,1813.7,6.33453]
[1743790196660,5.51255,1814.1,1813.7,6.33451]
[1743790196865,5.5124,1814.1,1813.8,5.51317]
[1743790197049,5.5124,1814.1,1813.7,6.33468]
[1743790197401,5.51309,1813.9,1813.4,0.7644]
[1743790197546,5.5133,1813.8,1813.5,5.51403]
[1743790197752,7.32854,1814.1,1813.4,0.7644]
[1743790197947,5.51363,1813.7,1813.4,6.27873]
[1743790198161,5.51363,1813.7,1813.4,0.7644]
[1743790198504,5.51363,1813.7,1813.4,6.27884]
[1743790198682,8.51298,1813.9,1813.4,0.7644]
[1743790198852,5.51386,1813.7,1813.2,11.02979]
[1743790199052,5.51404,1813.6,1813.2,5.51483]
[1743790199393,5.51359,1813.7,1813.3,5.56982172]
[1743790199591,5.51359,1813.7,1813.3,5.51468]
[1743790199767,5.51359,1813.7,1813.4,5.51445]
[1743790199948,11.02738,1813.7,1813.3,5.56982172]
[1743790200148,11.02738,1813.7,1813.3,5.51468]
[1743790200350,0.7711,1814.0,1813.4,0.88194171]
[1743790200587,3.0,1813.9,1813.6,5.51374]
[1743790200786,11.4854,1814.1,1813.7,5.56861016]
[1743790200990,5.973,1814.1,1813.7,0.05513016]
[1743790201172,5.51292,1814.0,1813.6,5.51376]
[1743790201381,11.02638,1813.9,1813.6,0.551376]
[1743790201696,5.973,1814.1,1813.8,11.8454]
[1743790201851,11.81711,1814.2,1813.8,6.33223]
[1743790202055,6.30482,1814.2,1813.8,6.33223]
[1743790202278,12.29689,1814.4,1813.8,0.8191]
[1743790202490,5.51178,1814.3,1814.0,5.51247]
[1743790202868,6.7854,1814.4,1813.8,0.8191]
[1743790203074,5.51268,1814.0,1813.8,0.8191]
[1743790203390,3.67854,1814.3,1813.6,6.32874]
[1743790203598,5.51287,1814.0,1813.6,11.84246]
[1743790203797,5.51287,1814.0,1813.7,5.51357]
[1743790203999,5.51211,1814.2,1813.7,5.51346]
[1743790204295,5.51211,1814.2,1813.8,11.02642]
[1743790204489,5.51187,1814.3,1813.9,6.27804]
[1743790204691,5.51208,1814.2,1813.9,6.27804]
[1743790205504,5.51187,1814.3,1813.9,11.79091]
[1743790205874,5.51187,1814.3,1813.9,6.27814]
[1743790206193,9.32391,1814.4,1814.0,5.51242]
[1743790206706,5.51151,1814.4,1814.0,5.51263]
[1743790206905,5.51146,1814.4,1813.9,1.944339]
[1743790207111,11.02514,1814.1,1813.7,6.26807]
[1743790207283,5.51268,1814.0,1813.7,6.26807]
[1743790207607,5.51243,1814.1,1813.7,11.78153]
[1743790207771,11.02498,1814.1,1813.7,11.78153]
[1743790207974,11.02431,1814.2,1813.8,5.51308]
[1743790208186,14.02374,1814.3,1813.8,5.51325]
[1743790208400,5.51209,1814.2,1813.8,5.51322]
[1743790208592,5.51257,1814.1,1813.8,5.51322]
[1743790208994,5.51314,1813.9,1813.6,5.51385]
[1743790209184,6.063997,1814.0,1813.5,6.33069]
[1743790209387,5.51274,1814.0,1813.6,5.56880103]
[1743790209588,3.0,1814.1,1813.8,5.51328]
[1743790209800,11.48309,1814.2,1813.9,0.764]
[1743790209986,3.8045,1814.3,1813.7,0.8187]
[1743790209987,0.8045,1814.3,1813.7,0.8187]
[1743790210195,11.02581,1814.0,1813.7,0.8187]
[1743790210405,5.51284,1814.0,1813.7,6.33218]
[1743790210610,5.51296,1814.0,1813.7,0.8187]
[1743790210777,5.51301,1813.9,1813.7,0.8187]
[1743790210979,5.51296,1814.0,1813.7,0.8187]
[1743790211392,5.51242,1814.1,1813.7,6.38738982]
[1743790211590,6.31632,1814.3,1813.9,5.51274]
[1743790211792,5.51146,1814.4,1813.8,5.51324]
[1743790212011,5.51249,1814.1,1813.8,5.51316]
[1743790212208,5.51299,1813.9,1813.7,0.8187]
[1743790212423,6.27389,1814.1,1813.5,0.786]
[1743790212710,6.27389,1814.1,1812.9,6.30142]
[1743790212711,5.51483,1813.3,1812.9,6.30142]
[1743790212931,5.51483,1813.3,1812.9,6.30168]
[1743790213130,11.85345,1813.4,1813.0,5.51555]
[1743790213333,5.51486,1813.3,1813.0,6.697273]
[1743790213516,11.0299,1813.3,1813.0,1.181723]
[1743790213721,5.51486,1813.3,1813.0,1.181723]
[1743790214302,5.51486,1813.3,1812.9,6.30155]
[1743790214626,5.51486,1813.3,1812.7,0.7711]
[1743790214627,5.51589,1813.0,1812.7,0.7711]
[1743790215031,5.51614,1812.9,1812.7,0.7711]
[1743790215334,5.51542,1813.1,1812.7,6.28747]
[1743790215654,5.51485,1813.3,1812.8,5.51632]
[1743790215801,5.51485,1813.3,1812.9,6.067512]
[1743790216231,5.51592,1813.0,1812.6,5.51683]
[1743790216697,3.8243,1813.4,1812.5,6.2999]
[1743790216698,5.51513,1813.2,1812.7,5.51642]
[1743790216900,5.51573,1813.0,1812.6,5.51677]
[1743790217098,5.51573,1813.0,1812.3,5.51782]
[1743790217099,5.97,1812.9,1812.3,6.30044]
[1743790217435,9.11333,1812.8,1812.4,5.5174]
[1743790217611,8.51633,1812.8,1812.4,5.5174]
[1743790217815,5.51667,1812.7,1812.3,11.03568]
[1743790218019,5.51705,1812.6,1812.2,11.57807]
[1743790218233,11.03613,1812.3,1812.1,0.1]
[1743790218428,5.51806,1812.3,1812.1,0.1]
[1743790218932,5.51815,1812.2,1812.1,0.1]
[1743790219128,8.51815,1812.2,1812.1,0.1]
[1743790220740,8.51772,1812.4,1812.1,0.1]
[1743790220929,5.51805,1812.3,1812.1,0.1]
[1743790221129,5.51815,1812.2,1812.1,0.1]
[1743790222718,5.5181,1812.3,1812.1,0.1]
[1743790223245,5.51807,1812.3,1812.1,0.1]
[1743790223428,5.51815,1812.2,1812.1,0.1]
[1743790226560,5.51807,1812.3,1812.1,0.1]
[1743790226848,5.51663,1812.7,1812.3,5.51784]
[1743790227052,5.51604,1812.9,1812.5,5.51709]
[1743790227353,11.03164,1813.0,1812.6,5.51687]
[1743790227567,5.51572,1813.0,1812.6,5.51687]
[1743790227775,6.7861,1813.2,1812.7,6.838767]
[1743790228005,5.5149,1813.3,1812.9,5.51589]
[1743790228206,5.51426,1813.5,1813.1,6.31081]
[1743790228392,5.51472,1813.4,1812.9,6.31147]
[1743790228571,5.51389,1813.6,1812.9,0.7956]
[1743790228774,5.51614,1812.9,1812.6,6.28303]
[1743790229104,5.51603,1812.9,1812.6,0.7661]
[1743790229926,5.51576,1813.0,1812.6,6.28278]
[1743790230219,5.51546,1813.1,1812.7,6.144788]
[1743790230502,5.51597,1813.0,1812.7,0.628278]
[1743790230707,9.34722,1813.2,1812.7,0.628278]
[1743790230903,5.51614,1812.9,1812.6,0.7661]
[1743790231271,5.51636,1812.8,1812.6,0.7661]
[1743790231476,5.51614,1812.9,1812.6,0.7661]
[1743790231692,11.03168,1813.0,1812.6,6.28299]
[1743790231892,5.51574,1813.0,1812.6,6.28299]
[1743790232093,0.20240037,1812.9,1812.6,6.28291]
[1743790232295,5.71863037,1812.9,1812.6,1.946096]
[1743790232521,5.71863037,1812.9,1812.6,7.463006]
[1743790233027,5.71863037,1812.9,1812.6,7.462926]
[1743790233505,0.20240037,1812.9,1812.6,7.462926]
[1743790233705,0.20240037,1812.9,1812.7,5.51652]
[1743790233927,0.20240037,1812.9,1812.7,6.8144576]
[1743790234135,0.20240037,1812.9,1812.7,6.86958027]
[1743790234293,5.51449,1813.5,1812.9,5.5159]
[1743790234294,5.5149,1813.3,1812.9,5.5159]
[1743790234493,0.7862,1813.5,1812.8,5.51632]
[1743790234494,5.51528,1813.2,1812.8,5.51632]
[1743790234694,5.51554,1813.1,1812.7,5.5166]
[1743790234929,5.51483,1813.3,1812.6,6.28298]
[1743790235228,11.03178,1813.0,1812.6,6.28287]
[1743790235398,0.7862,1813.1,1812.7,6.144737]
[1743790235399,6.30171,1813.1,1812.7,6.144737]
[1743790235598,0.2030391,1813.0,1812.7,11.661247]
[1743790236100,0.2030391,1813.0,1812.6,6.28301]
[1743790236312,5.7189491,1813.0,1812.7,5.51663]
[1743790237234,5.7189491,1813.0,1812.6,11.79962]
[1743790237430,5.51654,1812.8,1812.4,5.51741]
[1743790237728,5.51764,1812.4,1812.1,0.911]
[1743790238037,11.03469,1812.5,1812.1,6.31533]
[1743790238201,0.20132226,1812.3,1812.2,5.51815]
[1743790238401,5.51697,1812.6,1812.2,6.38432622]
[1743790238720,0.20132226,1812.5,1812.4,5.51754]
[1743790238915,15.23916,1812.7,1812.4,5.51754]
[1743790239302,0.20132226,1812.6,1812.5,5.51724]
[1743790239818,5.51604,1812.9,1812.5,5.51724]
[1743790240019,0.20132226,1812.6,1812.5,6.33294]
[1743790240233,6.7958,1813.0,1812.7,5.51648]
[1743790240432,11.03111,1813.1,1812.8,0.551648]
[1743790240597,11.03115,1813.1,1812.7,5.51648]
[1743790240800,11.03169,1813.0,1812.6,5.51676]
[1743790241025,12.31061,1813.3,1812.8,5.51622]
[1743790241220,11.85562,1813.3,1812.9,5.51592]
[1743790241408,5.51513,1813.2,1812.9,6.33902]
[1743790241623,5.51513,1813.2,1812.9,0.8231]
[1743790241823,5.51513,1813.2,1812.9,6.339]
[1743790242025,5.51513,1813.2,1812.9,7.524516]
[1743790242206,11.03041,1813.2,1812.9,0.8231]
[1743790242407,5.51513,1813.2,1812.9,0.8231]
[1743790242640,11.03044,1813.2,1812.9,0.8231]
[1743790242857,5.51513,1813.2,1812.9,0.8231]
[1743790243040,6.3406,1813.3,1812.9,6.33907]
[1743790243041,11.85552,1813.3,1812.9,6.33907]
[1743790243241,5.51516,1813.2,1812.9,6.33907]
[1743790243606,6.3406,1813.3,1812.9,11.85495]
[1743790243806,5.51515,1813.2,1812.9,0.8231]
[1743790244107,5.51624,1812.9,1812.5,5.51721]
[1743790244434,5.51636,1812.8,1812.5,5.51721]
[1743790244636,5.71832101,1812.8,1812.5,5.51721]
[1743790244802,0.20196101,1812.8,1812.5,5.51708]
[1743790245006,0.20196101,1812.8,1812.5,6.068818]
[1743790245307,3.0,1813.1,1812.8,5.51612]
[1743790245514,0.20196101,1813.0,1812.9,5.51591]
[1743790245713,5.51451,1813.4,1813.1,5.51536]
[1743790246039,0.20279957,1813.3,1813.1,0.551536]
[1743790246210,5.71761957,1813.3,1813.0,5.51542]
[1743790246708,5.71761957,1813.3,1813.0,11.03103]
[1743790246709,0.20279957,1813.3,1813.0,11.03103]
[1743790246909,0.20279957,1813.2,1812.9,5.51596]
[1743790247140,5.51492,1813.3,1813.0,5.51562]
[1743790247335,5.51492,1813.3,1812.7,6.32191]
[1743790247336,0.20279957,1813.2,1812.7,6.32191]
[1743790247541,5.51573,1813.0,1812.7,6.32191]
[1743790247943,0.20279957,1812.9,1812.7,6.322]
[1743790248241,11.83201,1813.1,1812.7,6.322]
[1743790248444,0.20279957,1812.8,1812.7,6.322]
[1743790248742,0.20279957,1812.8,1812.6,5.51689]
[1743790249125,0.20279957,1812.7,1812.5,12.371338]
[1743790249441,5.51577,1813.0,1812.5,6.854068]
[1743790249638,5.51608,1812.9,1812.5,6.854068]
[1743790249809,5.51633,1812.8,1812.5,6.854068]
[1743790250238,5.51633,1812.8,1812.2,11.57815]
[1743790250239,5.51689,1812.7,1812.3,6.32844]
[1743790250438,5.51698,1812.6,1812.3,0.8107]
[1743790250641,5.51698,1812.6,1812.3,6.32852]
[1743790250847,11.0334,1812.7,1812.3,6.32852]
[1743790251011,5.51666,1812.7,1812.3,11.84624]
[1743790251205,5.51666,1812.7,1812.4,5.51751]
[1743790251535,5.51666,1812.7,1812.4,5.51754]
[1743790252008,6.29448,1812.8,1812.4,5.51738]
[1743790252210,0.8019,1813.0,1812.7,5.51649]
[1743790252408,11.48354,1813.1,1812.7,6.30729]
[1743790252622,6.31705,1813.2,1812.8,5.5163]
[1743790252816,5.51455,1813.4,1813.0,5.51553]
[1743790253015,5.51455,1813.4,1812.6,5.968]
[1743790253016,6.31614,1813.5,1813.1,6.857643]
[1743790253224,6.31552,1813.7,1813.3,5.51461]
[1743790253465,5.51311,1813.9,1813.5,5.51407]
[1743790253747,5.51311,1813.9,1813.5,5.51406]
[1743790253964,6.31465,1814.0,1813.7,5.51356]
[1743790254245,6.3146,1814.0,1813.7,5.51342]
[1743790254644,6.3146,1814.0,1813.6,5.51386]
[1743790254814,6.3146,1814.0,1813.6,6.065166]
[1743790255230,0.8019,1814.0,1813.7,5.51346]
[1743790255614,6.31464,1814.0,1813.7,5.51346]
[1743790255823,0.8019,1814.0,1813.6,0.551386]
[1743790256017,5.5118,1814.3,1813.9,11.02563]
[1743790256211,5.51149,1814.4,1814.0,1.929663]
[1743790256415,5.51149,1814.4,1814.0,7.442233]
[1743790256742,11.02318,1814.4,1814.0,7.442233]
[1743790256943,5.51149,1814.4,1814.0,7.442233]
[1743790257154,5.51149,1814.4,1814.0,1.102563]
[1743790257515,5.51149,1814.4,1813.9,5.51298]
[1743790258015,0.7607,1814.5,1814.1,5.51235]
[1743790258016,9.27193,1814.5,1814.1,5.51235]
[1743790258215,14.78331,1814.5,1814.1,5.51235]
[1743790258624,5.51086,1814.6,1814.1,5.51235]
[1743790258824,11.02193,1814.6,1814.2,5.51195]
[1743790259027,5.51147,1814.4,1814.0,5.51261]
[1743790259222,5.51116,1814.5,1814.0,5.51248]
[1743790259434,5.51116,1814.5,1814.0,11.02497]
[1743790259640,5.70753317,1814.4,1814.0,5.5125]
[1743790259849,0.19596317,1814.4,1814.1,5.51236]
[1743790260046,5.51219,1814.2,1813.8,6.34014]
[1743790260212,0.7821,1814.3,1813.5,5.51399]
[1743790260418,5.51308,1813.9,1813.5,11.02801]
[1743790260720,5.70927317,1813.8,1813.5,5.51399]
[1743790260922,0.19596317,1813.8,1813.4,0.8236]
[1743790261245,5.51347,1813.8,1813.4,7.02633]
[1743790261446,0.19596317,1813.7,1813.6,5.51389]
[1743790261857,0.7693,1813.9,1813.5,5.514]
[1743790262149,6.28248,1813.9,1813.4,7.02636]
[1743790262349,0.19596317,1813.8,1813.6,5.51387]
[1743790262523,0.7693,1813.9,1813.6,5.51387]
[1743790262724,0.19596317,1813.8,1813.6,5.51387]
[1743790263121,0.19596317,1813.7,1813.6,6.08197137]
[1743790263343,6.27149,1814.1,1813.6,11.59566137]
[1743790263537,0.19596317,1814.0,1813.6,0.56810137]
[1743790263729,0.19596317,1814.0,1813.9,5.51298]
[1743790263922,5.963,1814.4,1814.1,5.51236]
[1743790264141,0.19596317,1814.3,1814.2,0.8078]
[1743790264352,5.5109,1814.6,1814.2,11.8317]
[1743790264550,6.7221,1814.8,1814.3,5.56674533]
[1743790264551,0.20071052,1814.5,1814.3,5.56674533]
[1743790264734,6.26941,1814.8,1814.4,5.51128]
[1743790265056,0.20071052,1814.7,1814.4,11.02255]
[1743790265252,0.20071052,1814.7,1814.5,5.51112]
[1743790265455,0.20071052,1814.7,1814.6,6.32675]
[1743790265750,0.1,1814.9,1814.6,6.32675]
[1743790265751,0.1,1814.9,1814.8,5.51024]
[1743790266256,0.1,1814.9,1814.7,5.51046]
[1743790266580,0.1,1814.9,1814.6,6.32662]
[1743790266757,5.61005,1814.9,1814.4,1.102255]
[1743790267064,5.51025,1814.8,1814.4,6.28427]
[1743790267237,0.1,1814.9,1814.6,5.51061]
[1743790267641,5.61019,1814.9,1814.5,5.51115]
[1743790267835,0.1,1814.9,1814.5,5.51104]
[1743790268033,0.1,1814.9,1814.5,5.51096]
[1743790268235,0.1,1814.9,1814.7,5.51051]
[1743790268524,0.1,1814.9,1814.7,5.51044]
[1743790268734,0.1,1814.9,1814.6,5.51083]
[1743790268958,5.61006,1814.9,1814.5,11.650526]
[1743790269167,5.61006,1814.9,1814.4,0.773]
[1743790269168,5.5108,1814.7,1814.4,0.773]
[1743790269335,5.5108,1814.7,1814.1,1.102503]
[1743790269336,5.51142,1814.5,1814.1,6.32606]
[1743790269535,5.51147,1814.4,1814.0,5.51264]
[1743790269767,5.51147,1814.4,1814.0,5.51257]
[1743790270337,5.51184,1814.3,1814.0,5.51257]
[1743790270657,11.02568,1814.0,1813.6,6.31284]
[1743790270846,6.33462,1814.1,1813.7,5.51346]
[1743790271047,6.33462,1814.1,1813.7,11.02686]
[1743790271239,6.33462,1814.1,1813.6,6.31289]
[1743790271240,0.8221,1814.1,1813.6,6.31289]
[1743790271440,5.51281,1814.0,1813.6,6.944179]
[1743790271664,6.33449,1814.1,1813.6,6.944169]
[1743790271853,6.33449,1814.1,1813.7,11.02677]
[1743790272051,5.51371,1813.7,1813.3,6.28556]
[1743790272579,5.51371,1813.7,1813.3,0.7708]
[1743790272757,5.51371,1813.7,1813.3,6.913992]
[1743790273068,8.96,1813.9,1813.3,6.913992]
[1743790273069,5.51404,1813.6,1813.3,1.399372]
[1743790273246,5.51404,1813.6,1813.2,5.51492]
[1743790273451,5.51392,1813.6,1813.2,5.51511]
[1743790274259,6.3213,1813.7,1813.3,5.51465]
[1743790274577,0.20043138,1813.6,1813.3,5.51465]
[1743790274739,6.32119,1813.7,1813.2,5.51507]
[1743790274933,5.71444138,1813.6,1813.2,6.618116]
[1743790275134,0.20043138,1813.6,1813.3,5.51478]
[1743790275362,14.02679,1813.8,1813.4,5.51438]
[1743790275558,0.20043138,1813.7,1813.4,5.51438]
[1743790275781,0.20043138,1813.7,1813.6,5.51389]
[1743790275943,4.3e-07,1813.7,1813.6,5.56901856]
[1743790276272,5.50967,1815.0,1813.6,5.56901856]
[1743790276273,6.29997,1814.8,1814.4,5.51121]
[1743790276444,0.7897,1814.8,1814.3,0.769]
[1743790276637,5.51097,1814.6,1814.2,11.0238]
[1743790276842,5.51085,1814.7,1814.3,5.51172]
[1743790277055,0.12063012,1814.5,1814.3,5.51172]
[1743790277250,5.51078,1814.7,1814.0,3.769]
[1743790277441,0.12063012,1814.4,1814.2,5.51207]
[1743790277644,5.51104,1814.6,1814.2,11.02395]
[1743790277855,0.12063012,1814.3,1814.2,12.126345]
[1743790278051,5.51135,1814.5,1814.1,5.5122]
[1743790278375,5.51135,1814.5,1814.1,5.51234]
[1743790278670,0.12063012,1814.4,1814.1,5.51216]
[1743790279076,5.51087,1814.6,1814.2,5.51192]
[1743790279284,0.12063012,1814.3,1814.1,11.02458]
[1743790279577,5.51087,1814.6,1814.2,5.51207]
[1743790279743,11.02193,1814.6,1814.2,5.51207]
[1743790279943,5.51087,1814.6,1814.2,5.51207]
[1743790280154,5.51086,1814.6,1814.1,5.51221]
[1743790280383,5.51127,1814.5,1814.1,5.51221]
[1743790280572,5.51127,1814.5,1814.1,5.51219]
[1743790280774,5.51086,1814.6,1814.1,5.51219]
[1743790280775,8.51092,1814.6,1814.2,5.51194]
[1743790280977,9.362012,1814.6,1814.2,5.51194]
[1743790281164,8.51086,1814.6,1814.3,5.51174]
[1743790281366,5.51118,1814.5,1814.1,5.51234]
[1743790281560,11.02254,1814.5,1814.1,5.5122]
[1743790281767,0.7897,1814.8,1813.8,5.51328]
[1743790281967,5.51237,1814.1,1813.7,5.51356]
[1743790282143,5.958,1814.1,1813.8,5.51313]
[1743790282479,5.51269,1814.0,1813.6,11.02728]
[1743790282638,5.958,1814.1,1813.8,5.5131]
[1743790282837,5.958,1814.1,1813.9,5.51287]
[1743790283043,8.51154,1814.4,1814.0,5.51251]
[1743790283572,12.29553,1814.5,1814.1,5.51235]
[1743790283573,0.12063012,1814.3,1814.1,5.51235]
[1743790283871,5.5116,1814.4,1814.0,5.51251]
[1743790284086,5.51244,1814.1,1813.6,0.7582]
[1743790284300,5.51322,1813.9,1813.5,5.51415]
[1743790284598,0.12134942,1813.8,1813.3,6.27299]
[1743790284807,5.51426,1813.5,1813.1,5.51539]
[1743790284985,5.51426,1813.5,1812.9,5.51599]
[1743790284986,0.12130947,1813.4,1812.9,5.51598]
[1743790285166,5.51515,1813.2,1812.8,5.5163]
[1743790285370,5.51587,1813.0,1812.6,5.51693]
[1743790285674,0.11895118,1812.9,1812.8,5.51632]
[1743790286060,11.47203,1813.3,1812.9,5.51587]
[1743790286292,5.51503,1813.3,1812.9,5.51587]
[1743790286490,5.51503,1813.3,1812.9,5.51585]
[1743790286988,5.51503,1813.3,1812.8,5.51625]
[1743790287151,5.51503,1813.3,1812.9,5.51599]
[1743790287356,5.51503,1813.3,1812.8,12.135725]
[1743790287658,5.51517,1813.2,1812.8,12.135625]
[1743790287903,5.51503,1813.3,1812.8,6.619435]
[1743790288068,5.51503,1813.3,1812.9,5.51591]
[1743790288282,5.51502,1813.3,1812.9,5.51591]
[1743790288488,5.51526,1813.2,1812.8,5.51615]
[1743790288662,11.02986,1813.3,1812.9,5.516]
[1743790288861,5.51527,1813.2,1812.8,5.51615]
[1743790289054,11.03059,1813.2,1812.8,5.51615]
[1743790289593,3.0,1813.3,1812.3,0.7948]
[1743790289764,5.51705,1812.6,1812.2,5.51804]
[1743790289969,0.11595189,1812.5,1812.3,5.51771]
[1743790290263,5.51675,1812.7,1812.3,6.62128]
[1743790290467,0.11595189,1812.4,1812.3,5.51771]
[1743790290667,5.51675,1812.7,1812.3,5.51771]
[1743790290855,0.11595189,1812.4,1812.3,5.51771]
[1743790291056,11.47433,1812.8,1812.4,5.51748]
[1743790291280,11.47433,1812.8,1812.5,5.51719]
[1743790291585,11.47519,1812.9,1812.5,11.03428]
[1743790291794,11.47519,1812.9,1812.5,5.51709]
[1743790291992,5.959,1812.9,1812.6,5.51682]
[1743790292188,0.7715,1813.1,1812.7,5.51649]
[1743790292490,6.28693,1813.1,1812.7,11.03301]
[1743790292991,6.28693,1813.1,1812.7,5.51649]
[1743790293181,5.51572,1813.0,1812.6,6.2961]
[1743790293358,5.51572,1813.0,1812.6,5.5169]
[1743790293754,3.0,1813.0,1812.4,6.29661]
[1743790293981,5.51643,1812.8,1812.4,5.51751]
[1743790294165,5.51643,1812.8,1812.4,5.51731]
[1743790294378,5.5161,1812.9,1812.5,5.51723]
[1743790294569,11.03234,1812.9,1812.5,5.51723]
[1743790294769,11.03287,1812.8,1812.4,5.51743]
[1743790295088,5.51634,1812.8,1812.4,5.51743]
[1743790295402,5.51696,1812.6,1812.2,5.51813]
[1743790295579,0.7731,1812.6,1812.1,0.8791]
[1743790295761,11.03484,1812.5,1812.1,5.61834]
[1743790295962,5.51734,1812.5,1812.1,0.1]
[1743790296172,5.51731,1812.5,1812.1,0.1]
[1743790296367,5.51786,1812.3,1812.1,0.1]
[1743790296592,5.51756,1812.4,1812.1,0.1]
[1743790297200,5.51796,1812.3,1812.1,0.1]
[1743790297408,5.51756,1812.4,1812.1,0.1]
[1743790297564,5.51756,1812.4,1812.1,5.61845]
[1743790297759,5.51756,1812.4,1812.1,0.1]
[1743790297959,5.51756,1812.4,1812.1,5.61845]
[1743790298161,6.29006,1812.6,1812.2,5.51803]
[1743790299063,6.29006,1812.6,1812.2,5.51794]
[1743790299288,5.51696,1812.6,1812.3,5.51784]
[1743790299480,5.51669,1812.7,1812.3,5.51784]
[1743790299684,11.03357,1812.7,1812.3,5.51784]
[1743790299882,5.51669,1812.7,1812.3,5.51771]
[1743790300101,11.80919,1812.8,1812.4,5.51743]
[1743790300262,5.51637,1812.8,1812.5,5.51721]
[1743790300459,5.51665,1812.7,1812.4,5.51743]
[1743790300661,5.51637,1812.8,1812.4,5.51743]
[1743790301166,5.51637,1812.8,1812.4,5.57259828]
[1743790301367,5.51637,1812.8,1812.5,6.07446983]
[1743790302098,8.51572,1813.0,1812.5,0.55725983]
[1743790302269,14.03171,1813.0,1812.6,5.51679]
[1743790302465,5.51572,1813.0,1812.6,11.03358]
[1743790302693,5.51572,1813.0,1812.6,5.51679]
[1743790302925,5.51572,1813.0,1812.6,11.03356]
[1743790303206,5.51572,1813.0,1812.6,5.51677]
[1743790303572,0.8053,1813.1,1812.6,0.551677]
[1743790303768,5.51621,1812.9,1812.6,5.51684]
[1743790304086,5.51571,1813.0,1812.6,5.51679]
[1743790304283,5.51571,1813.0,1812.6,5.51678]
[1743790304598,5.5162,1812.9,1812.5,5.51718]
[1743790304798,5.51652,1812.8,1812.5,1.103468]
[1743790304995,5.51652,1812.8,1812.5,5.51721]
[1743790305400,5.51608,1812.9,1812.6,5.51686]
[1743790305697,5.51571,1813.0,1812.4,5.51749]
[1743790305915,5.51642,1812.8,1812.4,11.03491]
[1743790306079,5.51642,1812.8,1812.5,5.5172]
[1743790306274,5.51607,1812.9,1812.6,5.51688]
[1743790307036,11.03226,1812.9,1812.5,5.51712]
[1743790307235,8.51577,1813.0,1812.6,5.51677]
[1743790307527,5.51604,1812.9,1812.6,5.51677]
[1743790307878,11.03225,1812.9,1812.6,5.51677]
[1743790308084,5.61976858,1812.8,1812.5,5.51721]
[1743790308295,5.51771,1812.4,1812.1,0.1]
[1743790308505,5.51771,1812.4,1812.1,5.61841]
[1743790308682,11.03466,1812.5,1812.1,5.61833]
[1743790309112,5.51764,1812.4,1812.1,5.61833]
[1743790309296,5.51728,1812.5,1812.1,5.61833]
[1743790309482,5.51779,1812.4,1812.1,0.1]
[1743790309686,5.51775,1812.4,1812.1,5.61843]
[1743790309882,11.0355,1812.4,1812.1,5.61843]
[1743790310115,11.586428,1812.5,1812.1,5.61836]
[1743790310315,5.51727,1812.5,1812.2,5.51804]
[1743790310692,5.51699,1812.6,1812.2,11.03604]
[1743790310899,11.0341,1812.6,1812.2,11.03604]
[1743790311284,5.51699,1812.6,1812.3,5.51783]
[1743790311814,11.03415,1812.6,1812.2,5.518]
[1743790312018,5.51733,1812.5,1812.2,5.518]
[1743790312218,8.51663,1812.7,1812.4,5.51743]
[1743790312425,5.51663,1812.7,1812.4,5.51742]
[1743790312597,5.51663,1812.7,1812.4,6.27982]
[1743790312799,11.03287,1812.8,1812.4,11.969647]
[1743790313000,5.51666,1812.7,1812.4,6.27982]
[1743790313195,11.03292,1812.8,1812.4,6.27982]
[1743790313400,5.51638,1812.8,1812.4,7.03575664]
[1743790313604,11.03293,1812.8,1812.4,7.03567664]
[1743790313799,12.28836,1812.9,1812.5,5.51699]
[1743790313995,11.47406,1812.9,1812.5,5.51699]
[1743790314319,5.51636,1812.8,1812.4,7.03575664]
[1743790314519,16.99026,1812.9,1812.6,0.17237117]
[1743790315018,5.51634,1812.8,1812.6,0.17237117]
[1743790315196,16.99024,1812.9,1812.7,0.17237117]
[1743790315411,16.99026,1812.9,1812.7,0.17237117]
[1743790315602,11.47404,1812.9,1812.5,5.51705]
[1743790315802,11.47404,1812.9,1812.5,6.22058166]
[1743790316000,5.51687,1812.7,1812.6,0.17237158]
[1743790317222,6.31696,1812.8,1812.6,0.17237158]
[1743790317394,11.83349,1812.8,1812.6,0.17237158]
[1743790317594,6.31696,1812.8,1812.7,0.17237158]
[1743790318131,5.51608,1812.9,1812.7,0.17237158]
[1743790318329,14.03158,1813.0,1812.7,0.17237158]
[1743790318518,5.51546,1813.1,1812.7,6.38912997]
[1743790318694,5.51546,1813.1,1812.8,5.51619]
[1743790318894,5.51515,1813.2,1812.9,5.51591]
[1743790319222,5.92544152,1813.3,1813.0,5.5157]
[1743790319416,5.51524,1813.2,1812.8,11.82964]
[1743790319629,5.51524,1813.2,1812.8,13.09436327]
[1743790319797,5.51574,1813.0,1812.8,0.7971]
[1743790319995,5.51574,1813.0,1812.7,11.20551158]
[1743790320223,6.34633,1813.1,1812.7,5.68884158]
[1743790320424,0.8309,1813.1,1812.7,5.68884158]
[1743790320594,5.51623,1812.9,1812.7,0.17237158]